[Event "*** SCC Grand Prix: Titled Tuesday Blitz"]
[Site "Chess.com"]
[Date "2020.07.14"]
[Round "2"]
[White "x-3738459472"]
[Black "KyrgyzFighter"]
[Result "1-0"]
[WhiteElo "2543"]
[BlackElo "2289"]
[TimeControl "180+1"]
[EndTime "10:13:51 PDT"]
[Termination "x-3738459472 won by resignation"]

1. e4 {[%clk 0:03:00.9]} 1... e6 {[%clk 0:02:59.5]} 2. d4 {[%clk 0:03:00.9]}
2... d5 {[%clk 0:02:59.7]} 3. Nd2 {[%clk 0:03:01.8]} 3... Nc6 {[%clk 0:02:59.4]}
4. Ngf3 {[%clk 0:03:01.7]} 4... Nf6 {[%clk 0:02:59.1]} 5. e5 {[%clk 0:03:01.9]}
5... Nd7 {[%clk 0:02:59.1]} 6. c3 {[%clk 0:03:02.5]} 6... f6 {[%clk 0:02:58.7]}
7. Bb5 {[%clk 0:03:03.1]} 7... a6 {[%clk 0:02:57.1]} 8. Bxc6 {[%clk 0:03:02.9]}
8... bxc6 {[%clk 0:02:58]} 9. Qa4 {[%clk 0:02:56.2]} 9... c5 {[%clk 0:02:56]}
10. Qc6 {[%clk 0:02:54.1]} 10... Kf7 {[%clk 0:02:24.1]} 11. Qxa8 {[%clk
0:02:52.1]} 11... Nb6 {[%clk 0:02:24.3]} 12. Qa7 {[%clk 0:02:52.3]} 12... Be7
{[%clk 0:02:06.2]} 13. O-O {[%clk 0:02:47.3]} 13... Qd7 {[%clk 0:02:06]} 14.
dxc5 {[%clk 0:02:47]} 14... Bxc5 {[%clk 0:02:04.9]} 15. Nb3 {[%clk 0:02:47.2]}
15... Be7 {[%clk 0:01:50.4]} 16. Be3 {[%clk 0:02:45.9]} 16... Qc6 {[%clk
0:01:34]} 17. Na5 {[%clk 0:02:23.7]} 1-0

[Event "*** SCC Grand Prix: Titled Tuesday Blitz"]
[Site "Chess.com"]
[Date "2020.07.14"]
[Round "2"]
[White "KetiGrant"]
[Black "BillCoe"]
[Result "1-0"]
[WhiteElo "2396"]
[BlackElo "2108"]
[TimeControl "180+1"]
[EndTime "10:14:05 PDT"]
[Termination "KetiGrant won by checkmate"]

1. e4 {[%clk 0:03:00.9]} 1... c5 {[%clk 0:02:58.8]} 2. Nf3 {[%clk 0:02:57.5]}
2... e6 {[%clk 0:02:59]} 3. d4 {[%clk 0:02:56.6]} 3... cxd4 {[%clk 0:02:59.9]}
4. Nxd4 {[%clk 0:02:56.9]} 4... a6 {[%clk 0:03:00.5]} 5. Bd3 {[%clk 0:02:55.1]}
5... Qc7 {[%clk 0:02:58.4]} 6. O-O {[%clk 0:02:53.9]} 6... Nf6 {[%clk
0:02:54.4]} 7. f4 {[%clk 0:02:48.9]} 7... Bc5 {[%clk 0:02:52.6]} 8. c3 {[%clk
0:02:47.1]} 8... d6 {[%clk 0:02:50.7]} 9. Kh1 {[%clk 0:02:43.5]} 9... O-O {[%clk
0:02:49.2]} 10. Nd2 {[%clk 0:02:41.9]} 10... b5 {[%clk 0:02:46.1]} 11. N2f3
{[%clk 0:02:41.5]} 11... Nbd7 {[%clk 0:02:44.9]} 12. Qe2 {[%clk 0:02:37.5]}
12... Bb7 {[%clk 0:02:37.7]} 13. e5 {[%clk 0:02:35.8]} 13... Bxf3 {[%clk
0:02:03.6]} 14. Nxf3 {[%clk 0:02:32.8]} 14... Nd5 {[%clk 0:01:21.2]} 15. Bxh7+
{[%clk 0:02:23]} 15... Kxh7 {[%clk 0:01:22.1]} 16. Ng5+ {[%clk 0:02:23.3]} 16...
Kg6 {[%clk 0:01:21.9]} 17. Qe4+ {[%clk 0:02:20.2]} 17... f5 {[%clk 0:01:13.1]}
18. exf6+ {[%clk 0:02:19.2]} 18... Kxf6 {[%clk 0:01:13.4]} 19. Qxe6# {[%clk
0:02:18.7]} 1-0

[Event "*** SCC Grand Prix: Titled Tuesday Blitz"]
[Site "Chess.com"]
[Date "2020.07.14"]
[Round "2"]
[White "Nastya_Rakhmangulova"]
[Black "luizwas"]
[Result "1-0"]
[WhiteElo "2342"]
[BlackElo "1813"]
[TimeControl "180+1"]
[EndTime "10:14:09 PDT"]
[Termination "Nastya_Rakhmangulova won by resignation"]

1. e4 {[%clk 0:03:00.9]} 1... e5 {[%clk 0:02:59.8]} 2. Nf3 {[%clk 0:03:00.5]}
2... Nc6 {[%clk 0:02:59.9]} 3. c3 {[%clk 0:03:01.2]} 3... d6 {[%clk 0:02:58]} 4.
d4 {[%clk 0:03:00.7]} 4... Bg4 {[%clk 0:02:57.5]} 5. Bb5 {[%clk 0:02:59.5]} 5...
a6 {[%clk 0:02:52.6]} 6. Bxc6+ {[%clk 0:02:57.6]} 6... bxc6 {[%clk 0:02:53.5]}
7. dxe5 {[%clk 0:02:58.1]} 7... d5 {[%clk 0:02:41.9]} 8. exd5 {[%clk 0:02:55.7]}
8... cxd5 {[%clk 0:02:38.2]} 9. Qa4+ {[%clk 0:02:52.9]} 9... Qd7 {[%clk
0:02:36.9]} 10. Qxd7+ {[%clk 0:02:51.3]} 10... Kxd7 {[%clk 0:02:37.8]} 11. Ng5
{[%clk 0:02:40.4]} 11... Bh5 {[%clk 0:02:33.4]} 12. O-O {[%clk 0:02:35.3]} 12...
h6 {[%clk 0:02:32.2]} 13. Nh3 {[%clk 0:02:34.5]} 13... Bc5 {[%clk 0:02:30.4]}
14. Nf4 {[%clk 0:02:33.7]} 14... Bg4 {[%clk 0:02:23.4]} 15. Nxd5 {[%clk
0:02:33.4]} 15... c6 {[%clk 0:02:21.7]} 16. Ne3 {[%clk 0:02:27.5]} 16... Bh5
{[%clk 0:02:18.3]} 17. Nd2 {[%clk 0:02:19.1]} 17... Re8 {[%clk 0:02:18.4]} 18.
Ne4 {[%clk 0:02:17.8]} 18... Rxe5 {[%clk 0:02:14]} 19. Nxc5+ {[%clk 0:02:16.4]}
19... Rxc5 {[%clk 0:02:14.2]} 20. b4 {[%clk 0:02:12.3]} 20... Rxc3 {[%clk
0:02:12.6]} 21. Bb2 {[%clk 0:02:12.6]} 21... Rd3 {[%clk 0:02:02.3]} 22. Bxg7
{[%clk 0:02:12.3]} 22... Rh7 {[%clk 0:02:02.4]} 23. Bb2 {[%clk 0:02:10.3]} 23...
Ne7 {[%clk 0:01:55.2]} 24. Nc4 {[%clk 0:02:10]} 24... Rd5 {[%clk 0:01:38.6]} 25.
Nb6+ {[%clk 0:02:09.1]} 25... Kd6 {[%clk 0:01:38.9]} 26. Nxd5 {[%clk 0:02:10]}
26... Kxd5 {[%clk 0:01:39.8]} 27. f3 {[%clk 0:02:05.8]} 27... Rg7 {[%clk
0:01:38.9]} 28. Rfd1+ {[%clk 0:02:03.8]} 1-0

[Event "*** SCC Grand Prix: Titled Tuesday Blitz"]
[Site "Chess.com"]
[Date "2020.07.14"]
[Round "2"]
[White "Denmark2015"]
[Black "Jabberwockiez"]
[Result "1-0"]
[WhiteElo "2572"]
[BlackElo "2282"]
[TimeControl "180+1"]
[EndTime "10:14:13 PDT"]
[Termination "Denmark2015 won by checkmate"]

1. d4 {[%clk 0:03:00.9]} 1... Nf6 {[%clk 0:02:56.6]} 2. c4 {[%clk 0:03:01]} 2...
e6 {[%clk 0:02:55.9]} 3. Nc3 {[%clk 0:03:00.9]} 3... Bb4 {[%clk 0:02:54.4]} 4.
a3 {[%clk 0:03:01]} 4... Bxc3+ {[%clk 0:02:53.9]} 5. bxc3 {[%clk 0:03:01.9]}
5... d6 {[%clk 0:02:53.1]} 6. f3 {[%clk 0:03:02.4]} 6... O-O {[%clk 0:02:53.2]}
7. e4 {[%clk 0:03:02.7]} 7... e5 {[%clk 0:02:53.9]} 8. Bd3 {[%clk 0:03:01]} 8...
Nc6 {[%clk 0:02:50.3]} 9. Ne2 {[%clk 0:03:01]} 9... Re8 {[%clk 0:02:49.3]} 10.
O-O {[%clk 0:03:00.6]} 10... b6 {[%clk 0:02:40.6]} 11. d5 {[%clk 0:02:54.3]}
11... Na5 {[%clk 0:02:40.7]} 12. Ng3 {[%clk 0:02:54.5]} 12... Ba6 {[%clk
0:02:40.7]} 13. Qe2 {[%clk 0:02:54.6]} 13... Rc8 {[%clk 0:02:39.3]} 14. Bg5
{[%clk 0:02:51.1]} 14... c6 {[%clk 0:02:38.5]} 15. Nh5 {[%clk 0:02:43.9]} 15...
cxd5 {[%clk 0:02:32]} 16. Bxf6 {[%clk 0:02:43.2]} 16... gxf6 {[%clk 0:02:31.8]}
17. Qe3 {[%clk 0:02:12.2]} 17... Re6 {[%clk 0:01:53.9]} 18. exd5 {[%clk
0:02:06.5]} 18... Nxc4 {[%clk 0:01:35.3]} 19. Qh6 {[%clk 0:01:45.6]} 19... e4
{[%clk 0:01:31.7]} 20. Qg7# {[%clk 0:01:45]} 1-0

[Event "*** SCC Grand Prix: Titled Tuesday Blitz"]
[Site "Chess.com"]
[Date "2020.07.14"]
[Round "2"]
[White "EvgenyRomanov"]
[Black "tk22h"]
[Result "1-0"]
[WhiteElo "2601"]
[BlackElo "2293"]
[TimeControl "180+1"]
[EndTime "10:14:16 PDT"]
[Termination "EvgenyRomanov won by resignation"]

1. e4 {[%clk 0:03:00.4]} 1... e5 {[%clk 0:02:58.5]} 2. Nf3 {[%clk 0:02:59.8]}
2... Nc6 {[%clk 0:02:58.5]} 3. d4 {[%clk 0:02:59.7]} 3... exd4 {[%clk 0:02:58]}
4. Nxd4 {[%clk 0:02:59.6]} 4... Nf6 {[%clk 0:02:58.1]} 5. Nxc6 {[%clk
0:02:58.9]} 5... bxc6 {[%clk 0:02:59]} 6. e5 {[%clk 0:02:59]} 6... Qe7 {[%clk
0:02:59]} 7. Qe2 {[%clk 0:02:59]} 7... Nd5 {[%clk 0:02:59.5]} 8. h4 {[%clk
0:02:59]} 8... f6 {[%clk 0:02:54.9]} 9. exf6 {[%clk 0:02:50]} 9... Qxe2+ {[%clk
0:02:53.9]} 10. Bxe2 {[%clk 0:02:49.4]} 10... Nxf6 {[%clk 0:02:54.4]} 11. Bf4
{[%clk 0:02:44.6]} 11... d6 {[%clk 0:02:53]} 12. Nd2 {[%clk 0:02:42.3]} 12...
Bf5 {[%clk 0:02:51.5]} 13. O-O-O {[%clk 0:02:41.5]} 13... Nd5 {[%clk 0:02:49]}
14. Bh2 {[%clk 0:02:37.1]} 14... Nb4 {[%clk 0:02:42]} 15. a3 {[%clk 0:02:23.3]}
15... Nxc2 {[%clk 0:02:35.6]} 16. Rhe1 {[%clk 0:02:05]} 16... Kd7 {[%clk
0:02:33.3]} 17. g4 {[%clk 0:02:03.8]} 17... Bg6 {[%clk 0:02:30.5]} 18. h5 {[%clk
0:02:02]} 18... Nd4 {[%clk 0:02:29.6]} 19. hxg6 {[%clk 0:02:00.2]} 19... hxg6
{[%clk 0:02:30.5]} 20. Bg3 {[%clk 0:01:59.9]} 20... Be7 {[%clk 0:02:27.9]} 21.
Nf3 {[%clk 0:01:58]} 21... Nb3+ {[%clk 0:02:26.1]} 22. Kc2 {[%clk 0:01:56.6]}
22... Nc5 {[%clk 0:02:24.6]} 23. Nd4 {[%clk 0:01:55.7]} 23... Bf6 {[%clk
0:02:19.7]} 24. Bf3 {[%clk 0:01:54.1]} 24... Bxd4 {[%clk 0:02:15.6]} 25. Rxd4
{[%clk 0:01:53.3]} 25... Rhe8 {[%clk 0:02:15.6]} 26. Rxe8 {[%clk 0:01:51.8]}
26... Rxe8 {[%clk 0:02:14.2]} 27. b4 {[%clk 0:01:50.1]} 27... Ne6 {[%clk
0:02:10.8]} 28. Rd2 {[%clk 0:01:44.9]} 28... Rf8 {[%clk 0:02:08.3]} 29. Be4
{[%clk 0:01:42.8]} 29... g5 {[%clk 0:02:05.1]} 30. Bf5 {[%clk 0:01:41.9]} 1-0

[Event "*** SCC Grand Prix: Titled Tuesday Blitz"]
[Site "Chess.com"]
[Date "2020.07.14"]
[Round "2"]
[White "DonBroca"]
[Black "colegiodemadrid"]
[Result "0-1"]
[WhiteElo "2122"]
[BlackElo "2405"]
[TimeControl "180+1"]
[EndTime "10:14:26 PDT"]
[Termination "colegiodemadrid won by checkmate"]

1. c4 {[%clk 0:03:00.9]} 1... Nf6 {[%clk 0:02:59.1]} 2. Nc3 {[%clk 0:02:58.8]}
2... g6 {[%clk 0:02:59.5]} 3. d4 {[%clk 0:02:59.1]} 3... Bg7 {[%clk 0:02:59.7]}
4. Nf3 {[%clk 0:02:59.4]} 4... d6 {[%clk 0:03:00.2]} 5. g3 {[%clk 0:02:59.1]}
5... O-O {[%clk 0:03:00.7]} 6. Bg2 {[%clk 0:02:58.8]} 6... Bf5 {[%clk
0:03:01.2]} 7. O-O {[%clk 0:02:57]} 7... Ne4 {[%clk 0:03:01.7]} 8. Re1 {[%clk
0:02:48.9]} 8... Nxc3 {[%clk 0:03:01.2]} 9. bxc3 {[%clk 0:02:49.8]} 9... Be4
{[%clk 0:03:01.8]} 10. Bf4 {[%clk 0:02:43.1]} 10... c5 {[%clk 0:03:00.9]} 11. e3
{[%clk 0:02:37.3]} 11... Nc6 {[%clk 0:02:58.4]} 12. Nd2 {[%clk 0:02:29]} 12...
Bxg2 {[%clk 0:02:58.1]} 13. Kxg2 {[%clk 0:02:29.9]} 13... b6 {[%clk 0:02:57]}
14. Nf3 {[%clk 0:02:24.8]} 14... Qc8 {[%clk 0:02:53.8]} 15. Rc1 {[%clk
0:02:15.8]} 15... Qa6 {[%clk 0:02:50.4]} 16. Qe2 {[%clk 0:01:55.9]} 16... e5
{[%clk 0:02:27]} 17. dxe5 {[%clk 0:01:44.8]} 17... dxe5 {[%clk 0:02:27.9]} 18.
Bg5 {[%clk 0:01:39.1]} 18... f6 {[%clk 0:02:20.3]} 19. Bh4 {[%clk 0:01:35.6]}
19... g5 {[%clk 0:02:20.2]} 20. Nxg5 {[%clk 0:01:35]} 20... fxg5 {[%clk
0:02:20]} 21. Bxg5 {[%clk 0:01:35.9]} 21... Na5 {[%clk 0:02:17.6]} 22. Qg4
{[%clk 0:01:27.4]} 22... Qxc4 {[%clk 0:02:15]} 23. e4 {[%clk 0:01:24.4]} 23...
Qf7 {[%clk 0:02:08.4]} 24. Re2 {[%clk 0:01:18.7]} 24... h5 {[%clk 0:02:06.6]}
25. Qh4 {[%clk 0:01:14.3]} 25... Qf3+ {[%clk 0:02:05.8]} 26. Kf1 {[%clk
0:01:12.6]} 26... Qh1# {[%clk 0:02:05.8]} 0-1

[Event "*** SCC Grand Prix: Titled Tuesday Blitz"]
[Site "Chess.com"]
[Date "2020.07.14"]
[Round "2"]
[White "verdest"]
[Black "Zhuu96"]
[Result "0-1"]
[WhiteElo "2521"]
[BlackElo "2844"]
[TimeControl "180+1"]
[EndTime "10:14:31 PDT"]
[Termination "Zhuu96 won by resignation"]

1. d4 {[%clk 0:03:00.9]} 1... Nf6 {[%clk 0:02:48.4]} 2. c4 {[%clk 0:03:00.8]}
2... g6 {[%clk 0:02:47.2]} 3. Nc3 {[%clk 0:02:57.7]} 3... Bg7 {[%clk 0:02:46.7]}
4. e4 {[%clk 0:02:57.8]} 4... d6 {[%clk 0:02:43.6]} 5. Be2 {[%clk 0:02:56.6]}
5... O-O {[%clk 0:02:42.8]} 6. Nf3 {[%clk 0:02:56.3]} 6... Nbd7 {[%clk
0:02:40.2]} 7. O-O {[%clk 0:02:55.2]} 7... e5 {[%clk 0:02:39.9]} 8. Qc2 {[%clk
0:02:55.2]} 8... a5 {[%clk 0:02:37.1]} 9. Rd1 {[%clk 0:02:53.7]} 9... exd4
{[%clk 0:02:37.2]} 10. Nxd4 {[%clk 0:02:54.6]} 10... Nc5 {[%clk 0:02:37.6]} 11.
Be3 {[%clk 0:02:54.8]} 11... c6 {[%clk 0:02:36.1]} 12. f3 {[%clk 0:02:53.4]}
12... Qe7 {[%clk 0:02:35.1]} 13. Rac1 {[%clk 0:02:48.9]} 13... Rd8 {[%clk
0:02:27.3]} 14. b3 {[%clk 0:02:38.1]} 14... Bd7 {[%clk 0:02:18]} 15. a3 {[%clk
0:02:30.5]} 15... Be8 {[%clk 0:02:17.7]} 16. b4 {[%clk 0:02:26.4]} 16... axb4
{[%clk 0:02:17.2]} 17. axb4 {[%clk 0:02:27.3]} 17... Na6 {[%clk 0:02:17.5]} 18.
Qb3 {[%clk 0:01:51]} 18... d5 {[%clk 0:02:12.3]} 19. cxd5 {[%clk 0:01:39]} 19...
cxd5 {[%clk 0:02:08.9]} 20. Nxd5 {[%clk 0:01:33.4]} 20... Nxd5 {[%clk
0:02:08.3]} 21. exd5 {[%clk 0:01:29.8]} 21... Ba4 {[%clk 0:02:07.7]} 22. Qd3
{[%clk 0:01:17.5]} 22... Bxd1 {[%clk 0:02:05.3]} 23. Rxd1 {[%clk 0:01:18.4]}
23... Nxb4 {[%clk 0:02:03]} 24. Qe4 {[%clk 0:01:17]} 24... Nxd5 {[%clk 0:02:03]}
25. Qxe7 {[%clk 0:01:16]} 25... Nxe7 {[%clk 0:02:02.9]} 0-1

[Event "*** SCC Grand Prix: Titled Tuesday Blitz"]
[Site "Chess.com"]
[Date "2020.07.14"]
[Round "2"]
[White "sotochess"]
[Black "SidArun"]
[Result "1/2-1/2"]
[WhiteElo "2439"]
[BlackElo "2252"]
[TimeControl "180+1"]
[EndTime "10:14:31 PDT"]
[Termination "Game drawn by agreement"]

1. e4 {[%clk 0:03:00.6]} 1... c6 {[%clk 0:02:58.1]} 2. d4 {[%clk 0:02:59.1]}
2... d5 {[%clk 0:02:57.3]} 3. f3 {[%clk 0:02:57.9]} 3... dxe4 {[%clk 0:02:56.7]}
4. fxe4 {[%clk 0:02:57.5]} 4... e5 {[%clk 0:02:57.3]} 5. Nf3 {[%clk 0:02:57.4]}
5... Bg4 {[%clk 0:02:57.5]} 6. Bc4 {[%clk 0:02:56.5]} 6... Nd7 {[%clk 0:02:58]}
7. O-O {[%clk 0:02:55.3]} 7... Ngf6 {[%clk 0:02:57.4]} 8. c3 {[%clk 0:02:55.1]}
8... b5 {[%clk 0:02:49]} 9. Bd3 {[%clk 0:02:51]} 9... Bd6 {[%clk 0:02:47.3]} 10.
Be3 {[%clk 0:02:49.4]} 10... Qc7 {[%clk 0:02:45.4]} 11. h3 {[%clk 0:02:47.8]}
11... Bh5 {[%clk 0:02:36.2]} 12. Nbd2 {[%clk 0:02:46.7]} 12... O-O {[%clk
0:02:29.5]} 13. Qc2 {[%clk 0:02:46.3]} 13... a6 {[%clk 0:02:24.9]} 14. Nh4
{[%clk 0:02:45.7]} 14... Bg6 {[%clk 0:02:17.6]} 15. Nf5 {[%clk 0:02:44.3]} 15...
Bxf5 {[%clk 0:02:16.2]} 16. Rxf5 {[%clk 0:02:43.7]} 16... Rae8 {[%clk
0:02:16.2]} 17. Raf1 {[%clk 0:02:42.6]} 17... c5 {[%clk 0:02:10.3]} 18. d5
{[%clk 0:02:30.6]} 18... c4 {[%clk 0:02:06.4]} 19. Be2 {[%clk 0:02:29.3]} 19...
Bc5 {[%clk 0:02:04.2]} 20. Bxc5 {[%clk 0:02:28.8]} 20... Qxc5+ {[%clk 0:01:58]}
21. Kh1 {[%clk 0:02:27.7]} 21... Qe3 {[%clk 0:01:52.5]} 22. R5f2 {[%clk
0:02:12.9]} 22... Nc5 {[%clk 0:01:45]} 23. Bf3 {[%clk 0:02:01]} 23... Nd3 {[%clk
0:01:43.5]} 24. Re2 {[%clk 0:02:00.4]} 24... Qc5 {[%clk 0:01:39.2]} 25. b3
{[%clk 0:01:59.7]} 25... Nf4 {[%clk 0:01:33.5]} 26. Ree1 {[%clk 0:01:59]} 26...
Nd3 {[%clk 0:01:31.8]} 27. Re2 {[%clk 0:01:58]} 27... Nf4 {[%clk 0:01:31.7]}
1/2-1/2

[Event "*** SCC Grand Prix: Titled Tuesday Blitz"]
[Site "Chess.com"]
[Date "2020.07.14"]
[Round "2"]
[White "Josip_buje"]
[Black "Mfcyryd"]
[Result "0-1"]
[WhiteElo "2286"]
[BlackElo "2529"]
[TimeControl "180+1"]
[EndTime "10:14:37 PDT"]
[Termination "Mfcyryd won by resignation"]

1. d4 {[%clk 0:03:00.9]} 1... Nf6 {[%clk 0:02:58.7]} 2. Nf3 {[%clk 0:03:01]}
2... e6 {[%clk 0:02:59.6]} 3. Bg5 {[%clk 0:03:01.2]} 3... b6 {[%clk 0:02:59.9]}
4. e3 {[%clk 0:03:01.4]} 4... Bb7 {[%clk 0:02:59.4]} 5. Nbd2 {[%clk 0:03:01.8]}
5... h6 {[%clk 0:02:58.5]} 6. Bh4 {[%clk 0:03:00.9]} 6... g5 {[%clk 0:02:59.1]}
7. Bg3 {[%clk 0:03:00.9]} 7... d6 {[%clk 0:03:00]} 8. Bd3 {[%clk 0:02:59.6]}
8... Nbd7 {[%clk 0:03:00.2]} 9. h3 {[%clk 0:02:59.2]} 9... Qe7 {[%clk
0:03:00.4]} 10. c3 {[%clk 0:02:58.4]} 10... Bg7 {[%clk 0:03:00]} 11. a4 {[%clk
0:02:57.7]} 11... a5 {[%clk 0:02:57.1]} 12. Qe2 {[%clk 0:02:56]} 12... e5 {[%clk
0:02:57.4]} 13. dxe5 {[%clk 0:02:55.2]} 13... Nxe5 {[%clk 0:02:57.4]} 14. Nxe5
{[%clk 0:02:40.5]} 14... dxe5 {[%clk 0:02:56.7]} 15. Bb5+ {[%clk 0:02:40.2]}
15... c6 {[%clk 0:02:55.7]} 16. Bc4 {[%clk 0:02:40.6]} 16... O-O {[%clk
0:02:53.8]} 17. O-O {[%clk 0:02:39.8]} 17... Rfd8 {[%clk 0:02:50]} 18. Nf3
{[%clk 0:02:38.1]} 18... Ne4 {[%clk 0:02:47.8]} 19. Bh2 {[%clk 0:02:35.1]} 19...
Kh8 {[%clk 0:02:46.1]} 20. Rfd1 {[%clk 0:02:32]} 20... f5 {[%clk 0:02:43.5]} 21.
Rxd8+ {[%clk 0:02:28]} 21... Rxd8 {[%clk 0:02:41.4]} 22. Rd1 {[%clk 0:02:28.4]}
22... Rxd1+ {[%clk 0:02:36.4]} 23. Qxd1 {[%clk 0:02:28]} 23... f4 {[%clk
0:02:37.3]} 24. Qc2 {[%clk 0:02:24.1]} 24... Nd6 {[%clk 0:02:15.9]} 25. Ba2
{[%clk 0:02:19.7]} 25... Bc8 {[%clk 0:02:12.5]} 26. Qb3 {[%clk 0:02:09.9]} 26...
Qd8 {[%clk 0:02:09.7]} 27. g4 {[%clk 0:01:49.8]} 27... c5 {[%clk 0:02:00.5]} 28.
Qd5 {[%clk 0:01:46]} 28... Bb7 {[%clk 0:01:58.5]} 0-1

[Event "*** SCC Grand Prix: Titled Tuesday Blitz"]
[Site "Chess.com"]
[Date "2020.07.14"]
[Round "2"]
[White "CheckThis4"]
[Black "JuliaEfremova"]
[Result "0-1"]
[WhiteElo "2490"]
[BlackElo "2299"]
[TimeControl "180+1"]
[EndTime "10:14:40 PDT"]
[Termination "JuliaEfremova won by checkmate"]

1. d4 {[%clk 0:03:00.9]} 1... Nf6 {[%clk 0:02:58]} 2. Bg5 {[%clk 0:03:00.2]}
2... g6 {[%clk 0:02:55.5]} 3. Bxf6 {[%clk 0:02:56.9]} 3... exf6 {[%clk
0:02:56.4]} 4. e3 {[%clk 0:02:55.5]} 4... Bg7 {[%clk 0:02:56.7]} 5. h4 {[%clk
0:02:55.6]} 5... h5 {[%clk 0:02:55.6]} 6. c4 {[%clk 0:02:55.7]} 6... d6 {[%clk
0:02:52.1]} 7. Nc3 {[%clk 0:02:55.7]} 7... O-O {[%clk 0:02:49.8]} 8. Qc2 {[%clk
0:02:53.2]} 8... Re8 {[%clk 0:02:48]} 9. O-O-O {[%clk 0:02:52.8]} 9... Nc6
{[%clk 0:02:44.5]} 10. Nge2 {[%clk 0:02:49]} 10... Ne7 {[%clk 0:02:22.7]} 11.
Nf4 {[%clk 0:02:47.9]} 11... c6 {[%clk 0:02:11.1]} 12. Bd3 {[%clk 0:02:43.4]}
12... Qa5 {[%clk 0:02:06.6]} 13. Kb1 {[%clk 0:02:37.1]} 13... a6 {[%clk
0:02:01.9]} 14. Ka1 {[%clk 0:02:32.5]} 14... b5 {[%clk 0:01:44.5]} 15. Nxg6
{[%clk 0:02:27]} 15... fxg6 {[%clk 0:01:31.3]} 16. Bxg6 {[%clk 0:02:26.6]} 16...
Nxg6 {[%clk 0:01:30.5]} 17. Qxg6 {[%clk 0:02:26.5]} 17... Be6 {[%clk 0:01:24.7]}
18. Qxh5 {[%clk 0:02:23.5]} 18... Bxc4 {[%clk 0:01:19.6]} 19. Rh3 {[%clk
0:02:15.6]} 19... Re7 {[%clk 0:01:12.2]} 20. Rg3 {[%clk 0:02:14.5]} 20... Rae8
{[%clk 0:01:04.8]} 21. Qg6 {[%clk 0:02:09.1]} 21... Kf8 {[%clk 0:01:00.2]} 22.
Ne4 {[%clk 0:01:59]} 22... Qxa2# {[%clk 0:00:57.8]} 0-1

[Event "*** SCC Grand Prix: Titled Tuesday Blitz"]
[Site "Chess.com"]
[Date "2020.07.14"]
[Round "2"]
[White "Kostya26"]
[Black "Juanovic"]
[Result "1-0"]
[WhiteElo "2385"]
[BlackElo "2089"]
[TimeControl "180+1"]
[EndTime "10:14:40 PDT"]
[Termination "Kostya26 won by resignation"]

1. e4 {[%clk 0:03:00.9]} 1... c5 {[%clk 0:02:59.6]} 2. Nf3 {[%clk 0:03:00.6]}
2... d6 {[%clk 0:02:59.6]} 3. Bb5+ {[%clk 0:03:00.4]} 3... Nd7 {[%clk
0:02:59.3]} 4. d4 {[%clk 0:02:59.5]} 4... cxd4 {[%clk 0:02:49.6]} 5. Qxd4 {[%clk
0:03:00.4]} 5... a6 {[%clk 0:02:38.4]} 6. Bxd7+ {[%clk 0:02:59.7]} 6... Qxd7
{[%clk 0:02:38.8]} 7. c4 {[%clk 0:03:00.6]} 7... Nf6 {[%clk 0:02:37.4]} 8. Nc3
{[%clk 0:03:00.8]} 8... g6 {[%clk 0:02:37.4]} 9. Bg5 {[%clk 0:03:00.3]} 9... Bg7
{[%clk 0:02:37.6]} 10. Nd5 {[%clk 0:03:00.7]} 10... Qd8 {[%clk 0:02:28.4]} 11.
Nxf6+ {[%clk 0:02:54.3]} 11... exf6 {[%clk 0:02:28.1]} 12. Bf4 {[%clk
0:02:54.1]} 12... O-O {[%clk 0:02:27.4]} 13. Qxd6 {[%clk 0:02:50.9]} 13... Qa5+
{[%clk 0:02:25.8]} 14. Bd2 {[%clk 0:02:50.2]} 14... Qa4 {[%clk 0:02:25]} 15. b3
{[%clk 0:02:48.2]} 15... Qe8 {[%clk 0:02:23.5]} 16. O-O {[%clk 0:02:47.9]} 16...
Qxe4 {[%clk 0:02:21.7]} 17. Rfe1 {[%clk 0:02:44.4]} 17... Qg4 {[%clk 0:02:16.7]}
18. Bc3 {[%clk 0:02:42.7]} 18... Qd7 {[%clk 0:01:53.8]} 19. Qf4 {[%clk
0:02:39.9]} 19... Re8 {[%clk 0:01:40.1]} 20. Rxe8+ {[%clk 0:02:33.2]} 20... Qxe8
{[%clk 0:01:40.2]} 21. Bxf6 {[%clk 0:02:33.7]} 21... Bf5 {[%clk 0:01:38.6]} 22.
Bxg7 {[%clk 0:02:33.3]} 22... Kxg7 {[%clk 0:01:39.5]} 23. Re1 {[%clk 0:02:31]}
23... Qd7 {[%clk 0:01:30.1]} 24. Ne5 {[%clk 0:02:27.5]} 24... Re8 {[%clk
0:01:26.8]} 25. g4 {[%clk 0:02:22.6]} 25... Bxg4 {[%clk 0:00:56]} 26. Nxd7
{[%clk 0:02:14.7]} 26... Rxe1+ {[%clk 0:00:56.9]} 27. Kg2 {[%clk 0:02:14]} 27...
Bxd7 {[%clk 0:00:56.1]} 28. Qd4+ {[%clk 0:02:13.9]} 1-0

[Event "*** SCC Grand Prix: Titled Tuesday Blitz"]
[Site "Chess.com"]
[Date "2020.07.14"]
[Round "2"]
[White "aloe_normansen"]
[Black "if_name_main_a"]
[Result "0-1"]
[WhiteElo "2202"]
[BlackElo "2431"]
[TimeControl "180+1"]
[EndTime "10:14:48 PDT"]
[Termination "if_name_main_a won by resignation"]

1. e4 {[%clk 0:03:00.9]} 1... e6 {[%clk 0:03:00.6]} 2. d4 {[%clk 0:02:59.9]}
2... d5 {[%clk 0:03:01.2]} 3. Nd2 {[%clk 0:02:58.5]} 3... c5 {[%clk 0:03:01]} 4.
exd5 {[%clk 0:02:57.6]} 4... Qxd5 {[%clk 0:03:01.9]} 5. Ngf3 {[%clk 0:02:56.9]}
5... cxd4 {[%clk 0:03:02.7]} 6. Bc4 {[%clk 0:02:57.1]} 6... Qd7 {[%clk
0:03:03.4]} 7. O-O {[%clk 0:02:52]} 7... Nc6 {[%clk 0:03:04]} 8. Nb3 {[%clk
0:02:51.7]} 8... a6 {[%clk 0:03:04.6]} 9. Nbxd4 {[%clk 0:02:51]} 9... Nxd4
{[%clk 0:03:05.3]} 10. Nxd4 {[%clk 0:02:50.5]} 10... Bd6 {[%clk 0:03:05.5]} 11.
Re1 {[%clk 0:02:40.9]} 11... Qc7 {[%clk 0:03:01]} 12. Nf5 {[%clk 0:01:46.2]}
12... Bxh2+ {[%clk 0:02:56.1]} 13. Kh1 {[%clk 0:01:45.7]} 13... Kf8 {[%clk
0:02:51.4]} 14. Qe2 {[%clk 0:01:31]} 14... Nf6 {[%clk 0:02:46.9]} 15. Nh4 {[%clk
0:00:48.4]} 15... Bf4 {[%clk 0:02:36.3]} 16. Bxf4 {[%clk 0:00:44]} 16... Qxf4
{[%clk 0:02:37.2]} 17. g3 {[%clk 0:00:43.6]} 17... Qh6 {[%clk 0:02:33.2]} 18.
Kg2 {[%clk 0:00:40.7]} 18... b5 {[%clk 0:02:33.1]} 19. Qf3 {[%clk 0:00:35.1]}
19... Rb8 {[%clk 0:02:29.4]} 20. Bf1 {[%clk 0:00:31.3]} 20... Bb7 {[%clk
0:02:28.8]} 0-1